bitfinex-derivatives/quotes_SOLF0:USTF0_20241016
["timestamp","ask_amount","ask_price","bid_price","bid_amount"]
[1729099626428,5.02,155.68,155.58,27.17]
[1729099626429,3.2128,155.65,155.6,3.2136]
[1729099626622,5.02,155.68,155.56,22.21]
[1729099626817,3.2132,155.64,155.59,3.2139]
[1729099627123,5.02,155.64,155.55,1.3174]
[1729099627318,1.3778,155.63,155.51,5.02]
[1729099627527,1.3778,155.63,155.54,3.215]
[1729099627528,3.2142,155.59,155.54,3.215]
[1729099627838,8.2342,155.59,155.54,3.25779922]
[1729099628025,5.02,155.62,155.51,5.02]
[1729099628221,5.02,155.62,155.56,22.21]
[1729099628528,6.3978,155.63,155.56,22.21]
[1729099628724,9.6111,155.63,155.58,3.2141]
[1729099628926,9.6111,155.63,155.59,3.24140414]
[1729099629124,6.3978,155.63,155.59,3.24140414]
[1729099629327,6.3978,155.63,155.58,3.2141]
[1729099629524,9.611,155.63,155.59,3.214]
[1729099629722,8.2332,155.63,155.59,3.214]
[1729099629922,8.2332,155.63,155.56,26.8752305]
[1729099630421,3.2134,155.62,155.58,3.2141]
[1729099630825,3.2134,155.62,155.56,26.8752305]
[1729099631023,3.2134,155.62,155.57,3.2144]
[1729099634543,3.2136,155.61,155.57,3.2144]
[1729099634741,5.02,155.63,155.57,3.2144]
[1729099635243,3.2135,155.62,155.57,3.2144]
[1729099637548,3.2137,155.61,155.57,3.2144]
[1729099639841,3.2136,155.61,155.57,13.89]
[1729099640439,3.2136,155.61,155.57,17.1044]
[1729099643552,3.2138,155.6,155.57,17.1044]
[1729099644949,5.02,155.63,155.57,13.89]
[1729099647252,3.2139,155.6,155.57,13.89]
[1729099653760,5.02,155.63,155.56,3.2777305]
[1729099653951,1.4247,155.62,155.55,13.89]
[1729099654448,3.2144,155.58,155.55,17.0609155]
[1729099655862,1.4247,155.62,155.55,17.0609155]
[1729099656162,3.2138,155.6,155.55,17.0609155]
[1729099656365,3.2138,155.6,155.56,3.2145]
[1729099656752,4.6381,155.62,155.55,17.0609155]
[1729099657065,5.02,155.63,155.58,3.2141]
[1729099657258,5.02,155.63,155.57,13.89]
[1729099657463,3.2137,155.61,155.57,20.26929376]
[1729099658153,5.02,155.63,155.57,17.05489376]
[1729099658466,3.2135,155.62,155.58,3.2142]
[1729099659151,3.2136,155.61,155.57,20.26919376]
[1729099662462,3.2133,155.63,155.59,3.2139]
[1729099662664,4.94,155.64,155.57,3.16489376]
[1729099662855,4.94,155.64,155.54,13.89]
[1729099663166,3.2137,155.61,155.57,3.2143]
[1729099663368,3.2137,155.61,155.57,6.42454469]
[1729099664070,4.94,155.64,155.57,3.21024469]
[1729099664261,4.94,155.64,155.54,13.89]
[1729099664768,4.94,155.64,155.54,22.10003297]
[1729099665362,3.2138,155.61,155.57,3.2144]
[1729099665663,4.94,155.64,155.54,22.10003297]
[1729099666365,3.2138,155.6,155.56,3.2145]
[1729099667964,3.2138,155.6,155.58,8.89]
[1729099668764,13.83,155.64,155.58,8.89]
[1729099669067,3.2137,155.61,155.58,8.89]
[1729099670969,3.214,155.59,155.56,13.5129]
[1729099671164,8.89,155.64,155.56,10.2984]
[1729099671365,8.89,155.66,155.61,8.89]
[1729099671566,8.89,155.65,155.59,8.89]
[1729099672370,3.2134,155.62,155.59,8.89]
[1729099675070,8.89,155.65,155.58,8.89]
[1729099675374,8.89,155.63,155.57,8.89]
[1729099675875,3.2136,155.61,155.57,12.1043]
[1729099677876,3.2136,155.61,155.58,8.89]
[1729099678774,3.2139,155.6,155.56,4.6229]
[1729099678976,3.2139,155.6,155.57,1.60738123]
[1729099679973,3.2139,155.6,155.58,8.89]
[1729099680375,3.2136,155.61,155.58,8.89]
[1729099680679,4.94,155.65,155.6,8.89]
[1729099681273,3.2133,155.63,155.6,8.89]
[1729099681474,3.2133,155.63,155.56,2.823]
[1729099681781,3.2133,155.63,155.6,8.89]
[1729099683278,3.2137,155.61,155.58,8.89]
[1729099683476,8.89,155.64,155.58,8.89]
[1729099683881,3.2135,155.62,155.58,12.1041]
[1729099684077,8.89,155.64,155.58,8.89]
[1729099684475,3.2137,155.61,155.58,8.89]
[1729099685074,3.2137,155.61,155.58,12.1042]
[1729099686084,3.2138,155.6,155.58,8.89]
[1729099688287,3.2137,155.61,155.58,12.1041]
[1729099688488,3.2137,155.61,155.59,8.89]
[1729099690187,8.89,155.64,155.58,12.1041]
[1729099690383,8.89,155.64,155.58,8.89]
[1729099690580,8.89,155.63,155.58,8.89]
[1729099691783,8.89,155.64,155.58,8.89]
[1729099691989,3.2138,155.61,155.58,8.89]
[1729099692283,8.89,155.64,155.58,8.89]
[1729099692487,3.2139,155.6,155.58,8.89]
[1729099693690,3.214,155.59,155.58,8.89]
[1729099693891,3.214,155.59,155.58,10.49736085]
[1729099697283,3.214,155.59,155.58,1.60736085]
[1729099697785,3.2146,155.57,155.54,15.37493297]
[1729099697986,3.2146,155.57,155.55,1.60745771]
[1729099698194,3.2146,155.57,155.54,15.37493297]
[1729099698697,3.2146,155.57,155.55,1.60746495]
[1729099698993,3.2146,155.57,155.54,15.37493297]
[1729099698994,3.2146,155.57,155.56,1.60746495]
[1729099699394,3.2146,155.57,155.54,15.37493297]
[1729099699395,3.2146,155.56,155.54,15.37493297]
[1729099700091,3.2148,155.55,155.54,3.27003297]
[1729099700290,8.89,155.58,155.53,8.89]
[1729099700495,8.89,155.58,155.53,12.03808722]
[1729099700797,3.215,155.54,155.53,12.03808722]
[1729099703102,3.215,155.54,155.53,3.14808722]
[1729099703597,3.2157,155.51,155.5,8.89]
[1729099705088,8.89,155.55,155.5,8.89]
[1729099705298,3.2154,155.53,155.51,8.89]
[1729099705496,3.2154,155.53,155.51,12.11937569]
[1729099707095,13.81,155.57,155.51,3.22937569]
[1729099707301,13.81,155.57,155.51,8.89]
[1729099707302,3.2155,155.52,155.51,8.89]
[1729099707598,3.2155,155.52,155.51,12.04991984]
[1729099709092,3.2155,155.52,155.51,3.15991984]
[1729099709288,3.2157,155.51,155.49,8.89]
[1729099709501,8.89,155.55,155.49,8.89]
[1729099709697,4.92,155.57,155.49,8.89]
[1729099709895,8.89,155.56,155.51,8.89]
[1729099710090,4.92,155.57,155.51,12.03512121]
[1729099710400,3.2152,155.54,155.51,12.03512121]
[1729099711002,13.81,155.57,155.51,12.03512121]
[1729099711197,3.2154,155.53,155.51,12.03512121]
[1729099713201,3.215,155.55,155.52,8.89]
[1729099713703,4.94,155.56,155.52,8.89]
[1729099714200,3.2151,155.54,155.51,12.03512121]
[1729099719901,10.2392,155.57,155.51,12.03512121]
[1729099720107,3.2148,155.55,155.51,15.25062121]
[1729099723108,4.92,155.56,155.47,94.82393612]
[1729099723109,101.0,155.51,155.47,81.16113612]
[1729099723304,28.21,155.48,155.31,2.7474]
[1729099723504,28.21,155.48,155.31,5.98975358]
[1729099723505,8.89,155.33,155.31,5.98975358]
[1729099723805,8.89,155.32,155.24,8.89]
[1729099724006,8.89,155.32,155.25,1.3814]
[1729099724206,12.1101,155.3,155.25,1.3814]
[1729099725003,8.89,155.28,155.25,1.3814]
[1729099725700,119.75569242,155.41,155.25,10.2714]
[1729099725701,8.89,155.31,155.25,10.2714]
[1729099725894,4.94,155.32,155.26,2.7089]
[1729099726296,8.1598,155.32,155.26,2.7089]
[1729099726498,4.94,155.32,155.26,2.7089]
[1729099727202,3.2201,155.3,155.26,2.7089]
[1729099728706,4.94,155.3,155.26,2.7089]
[1729099729002,3.2204,155.28,155.26,2.7089]
[1729099729203,4.94,155.3,155.26,2.7089]
[1729099729408,3.2206,155.27,155.26,2.7089]
[1729099738016,18.84,155.31,155.26,2.7089]
[1729099738716,3.2206,155.27,155.26,2.7089]
[1729099740818,13.9,155.33,155.26,2.7089]
[1729099741007,18.84,155.33,155.26,2.7089]
[1729099741323,3.2204,155.29,155.26,2.7089]
[1729099741819,18.84,155.33,155.26,2.7089]
[1729099742318,13.9,155.33,155.26,2.7089]
[1729099742522,18.84,155.33,155.26,2.7089]
[1729099743019,13.9,155.31,155.26,2.7089]
[1729099743220,13.9,155.31,155.26,1.3548]
[1729099743431,13.9,155.29,155.26,1.3548]
[1729099743717,13.9,155.27,155.22,1.4542]
[1729099744118,3.2214,155.24,155.22,1.4542]
[1729099744317,13.9,155.27,155.22,1.4542]
[1729099744823,3.2215,155.23,155.22,1.4542]
[1729099746524,13.9,155.24,155.17,6.4292]
[1729099746718,13.9,155.24,155.17,4.0477]
[1729099747837,3.2225,155.18,155.17,4.0477]
[1729099748823,5.06,155.25,155.17,12.9577]
[1729099749025,8.91,155.23,155.17,12.9577]
[1729099750031,3.2225,155.18,155.17,12.9577]
[1729099750326,8.91,155.18,155.04,69.56]
[1729099750527,8.91,155.18,155.13,2.7183]
[1729099750828,8.91,155.18,155.13,5.92326113]
[1729099751020,8.91,155.18,155.13,2.7183]
[1729099751221,3.2233,155.14,155.13,5.97418469]
[1729099751629,8.91,155.18,155.13,5.97418469]
[1729099751829,18.99,155.2,155.13,5.97418469]
[1729099752321,5.06,155.21,155.13,5.97418469]
[1729099752524,18.99,155.22,155.13,5.97418469]
[1729099752823,3.223,155.16,155.13,5.97418469]
[1729099753023,18.99,155.22,155.13,5.97418469]
[1729099753633,3.2229,155.16,155.13,5.97418469]
[1729099754233,3.2231,155.15,155.13,5.97418469]
[1729099759631,3.2233,155.14,155.13,5.97418469]
[1729099765832,3.2233,155.14,155.13,3.25588469]
[1729099766031,3.2238,155.12,155.1,18.99]
[1729099766232,3.2238,155.12,155.1,13.93]
[1729099766434,3.2238,155.12,155.1,22.26780116]
[1729099769841,3.2238,155.12,155.1,8.33780116]
[1729099770739,13.93,155.2,155.1,8.33780116]
[1729099770941,3.2236,155.13,155.1,8.33780116]
[1729099771744,6.4441,155.21,155.11,13.93]
[1729099771944,5.06,155.2,155.12,2.6931]
[1729099772446,3.2235,155.13,155.12,2.6931]
[1729099773846,3.2235,155.13,155.12,11.6131]
[1729099774449,3.2235,155.13,155.12,2.6931]
[1729099778042,8.92,155.17,155.1,8.33780116]
[1729099778248,8.92,155.15,155.11,5.02]
[1729099778548,8.92,155.15,155.11,3.24997305]
[1729099778740,8.92,155.15,155.09,13.94]
[1729099779140,3.2241,155.11,155.09,13.94]
[1729099779346,3.2241,155.11,155.09,17.19996603]
[1729099779856,8.92,155.14,155.09,17.19996603]
[1729099780657,3.2241,155.11,155.09,17.19996603]
[1729099781157,3.2241,155.11,155.1,8.92]
[1729099782355,3.2239,155.12,155.1,8.92]
[1729099789959,2.3612,155.23,155.1,8.92]
[1729099790261,3.2233,155.14,155.13,8.92]
[1729099791150,8.92,155.17,155.11,8.92]
[1729099791363,8.92,155.16,155.09,8.27996603]
[1729099791657,8.92,155.16,155.1,8.92]
[1729099792564,3.2241,155.11,155.1,13.94]
[1729099797865,5.02,155.18,155.1,13.94]
[1729099798071,3.2239,155.12,155.11,8.92]
[1729099801865,6.445,155.19,155.11,8.92]
[1729099802073,6.445,155.19,155.14,8.92]
[1729099802370,8.92,155.17,155.13,8.92]
[1729099802573,8.92,155.16,155.1,3.26458681]
[1729099802777,8.92,155.16,155.1,8.92]
[1729099803069,3.224,155.11,155.1,12.12077122]
[1729099804265,3.224,155.11,155.1,3.20077122]
[1729099804467,3.2244,155.09,155.08,8.92]
[1729099804867,3.2244,155.09,155.08,12.15686893]
[1729099806083,8.92,155.15,155.08,12.15686893]
[1729099806275,8.92,155.15,155.1,8.92]
[1729099807083,3.224,155.11,155.1,3.14859864]
[1729099807376,8.92,155.14,155.07,13.86]
[1729099807673,4.94,155.16,155.11,8.92]
[1729099807870,13.86,155.16,155.11,8.92]
[1729099808069,14.85919639,155.24,155.13,8.92]
[1729099808271,8.92,155.21,155.15,8.92]
[1729099808480,8.92,155.21,155.17,8.92]
[1729099808679,7.3404,155.23,155.17,8.92]
[1729099808680,3.2225,155.18,155.17,8.92]
[1729099811679,3.2224,155.19,155.17,8.92]
[1729099811985,3.2224,155.19,155.18,8.92]
[1729099812478,3.2218,155.22,155.18,8.92]
[1729099812667,8.92,155.25,155.17,8.17357074]
[1729099812668,13.86,155.25,155.2,8.92]
[1729099813780,8.92,155.23,155.18,8.92]
[1729099814384,3.2223,155.19,155.18,8.92]
[1729099814575,3.2223,155.19,155.18,12.13262793]
[1729099818579,3.2222,155.2,155.18,12.13262793]
[1729099818783,3.2222,155.2,155.19,8.92]
[1729099819687,3.2222,155.2,155.19,3.26943375]
[1729099819880,13.86,155.24,155.18,8.92]
[1729099820079,3.2223,155.19,155.18,8.92]
[1729099820484,3.2223,155.19,155.18,12.14464257]
[1729099821692,4.94,155.25,155.18,8.92]
[1729099821892,4.94,155.25,155.21,8.92]
[1729099822492,3.2217,155.22,155.21,8.92]
[1729099824092,3.2221,155.21,155.2,8.92]
[1729099826088,6.4407,155.29,155.2,8.92]
[1729099826089,105.4569546,155.28,155.2,8.92]
[1729099826296,105.4569546,155.28,155.19,4.94]
[1729099826297,105.4569546,155.28,155.23,8.92]
[1729099826592,4.94,155.28,155.23,8.92]
[1729099826985,3.2213,155.24,155.23,8.92]
[1729099827890,3.2215,155.23,155.22,8.92]
[1729099828094,8.92,155.25,155.18,7.6877]
[1729099828296,8.92,155.25,155.2,8.92]
[1729099829493,3.2219,155.21,155.2,8.92]
[1729099830391,8.92,155.25,155.18,2.7477]
[1729099830694,3.2223,155.2,155.19,8.92]
[1729099831195,3.2223,155.19,155.18,10.2532]
[1729099834692,6.4418,155.26,155.18,10.2532]
[1729099834693,4.94,155.26,155.18,10.2532]
[1729099834893,4.94,155.26,155.22,8.92]
[1729099835499,3.2215,155.23,155.22,8.92]
[1729099845998,6.72788787,155.42,155.27,28.0]
[1729099846196,8.92,155.39,155.33,8.92]
[1729099846498,8.92,155.39,155.33,12.07926183]
[1729099846697,3.2185,155.38,155.33,12.07926183]
[1729099846897,8.92,155.39,155.33,12.07926183]
[1729099847206,8.92,155.37,155.33,3.15926183]
[1729099847510,1.4297,155.41,155.3,8.92]
[1729099847511,8.92,155.36,155.3,8.92]
[1729099847690,8.92,155.36,155.3,17.14559872]
[1729099848092,3.2194,155.33,155.3,17.14559872]
[1729099848506,3.2194,155.33,155.3,12.20559872]
[1729099848703,3.2198,155.32,155.3,8.22559872]
[1729099848898,8.92,155.35,155.3,8.22559872]
[1729099849707,3.2195,155.33,155.3,8.22559872]
[1729099849907,3.2195,155.33,155.3,3.28559872]
[1729099850106,3.2195,155.33,155.29,4.94]
[1729099850307,3.2195,155.33,155.29,8.18921727]
[1729099850798,3.2195,155.33,155.3,8.92]
[1729099851700,3.2195,155.33,155.31,8.92]
[1729099855302,3.2191,155.35,155.31,8.92]
[1729099855613,8.92,155.36,155.31,8.92]
[1729099856412,3.2194,155.34,155.31,8.92]
[1729099859515,1.0468,155.44,155.33,8.92]
[1729099859716,8.92,155.4,155.33,8.92]
[1729099860618,8.92,155.4,155.35,8.92]
[1729099861114,3.2186,155.37,155.35,8.92]
[1729099861409,8.92,155.4,155.35,8.92]
[1729099861607,3.2184,155.38,155.36,8.92]
[1729099861808,3.2184,155.38,155.37,3.21550405]
[1729099862608,8.92,155.38,155.29,3.24921727]
[1729099862809,6.4355,155.41,155.24,2.8309]
[1729099862810,8.92,155.33,155.24,2.8309]
[1729099863117,8.92,155.3,155.24,2.8309]
[1729099863319,8.92,155.3,155.24,8.92]
[1729099864014,3.2206,155.28,155.24,8.92]
[1729099864806,3.2203,155.29,155.26,8.92]
[1729099865011,8.92,155.34,155.28,8.92]
[1729099865215,8.92,155.34,155.3,8.92]
[1729099865421,3.2194,155.33,155.3,12.15156305]
[1729099865718,4.98,155.38,155.32,8.92]
[1729099866015,4.98,155.38,155.28,4.98]
[1729099866016,4.98,155.38,155.34,8.92]
[1729099866414,3.2189,155.36,155.34,8.92]
[1729099866612,4.98,155.38,155.34,8.92]
[1729099867220,3.219,155.36,155.34,8.92]
[1729099867916,3.219,155.36,155.32,4.98]
[1729099867917,3.219,155.36,155.33,13.91]
[1729099868420,4.98,155.41,155.33,13.91]
[1729099868722,3.2186,155.37,155.33,13.91]
[1729099869719,3.2186,155.37,155.33,17.1293]
[1729099869919,4.98,155.41,155.33,17.1293]
[1729099870117,2.7285,155.42,155.35,13.91]
[1729099870422,4.98,155.44,155.36,8.1987]
[1729099870623,4.98,155.44,155.36,8.21065649]
[1729099870925,3.2181,155.4,155.36,8.21065649]
[1729099873923,3.2181,155.4,155.37,13.91]
[1729099874126,3.2181,155.4,155.37,15.2401]
[1729099875525,3.2181,155.4,155.38,4.98]
[1729099877221,3.2181,155.4,155.37,15.2401]
[1729099877428,13.91,155.44,155.36,8.21065649]
[1729099877627,4.98,155.43,155.34,4.98]
[1729099878329,13.91,155.41,155.33,15.3173]
[1729099878518,3.219,155.35,155.33,1.4073]
[1729099878714,4.98,155.43,155.33,1.4073]
[1729099878715,13.91,155.4,155.33,1.4073]
[1729099879125,13.91,155.35,155.25,106.08755829]
[1729099879427,18.89,155.35,155.25,107.50615829]
[1729099879633,3.2204,155.29,155.25,23.60341074]
[1729099881120,3.22,155.31,155.26,3.2208]
[1729099881525,18.89,155.35,155.27,13.91]
[1729099882223,3.2197,155.32,155.27,17.1306]
[1729099882527,18.89,155.35,155.27,17.1306]
[1729099882717,3.2186,155.37,155.27,17.1306]
[1729099882918,4.98,155.36,155.27,17.1306]
[1729099883220,4.98,155.36,155.29,13.91]
[1729099883527,18.89,155.39,155.29,18.89]
[1729099884135,4.98,155.39,155.31,13.91]
[1729099885422,4.98,155.39,155.32,1.4365]
[1729099885626,3.2186,155.36,155.32,1.4365]
[1729099886631,3.2187,155.35,155.32,1.4365]
[1729099887530,18.89,155.39,155.32,1.4365]
[1729099887923,3.2182,155.38,155.33,3.29846925]
[1729099888128,18.89,155.39,155.33,3.29846925]
[1729099888633,3.2189,155.34,155.33,3.29846925]
[1729099891831,3.2189,155.34,155.32,1.4365]
[1729099891832,18.89,155.39,155.32,1.4365]
[1729099892131,3.2191,155.33,155.32,1.4365]
[1729099892927,3.2201,155.28,155.27,13.91]
[1729099893327,4.98,155.35,155.27,13.91]
[1729099893519,3.22,155.29,155.27,13.91]
[1729099895228,4.98,155.35,155.27,13.91]
[1729099895533,3.2201,155.28,155.27,13.91]
[1729099897237,4.98,155.35,155.27,13.91]
[1729099897537,4.98,155.35,155.27,17.1303]
[1729099899426,4.98,155.35,155.27,22.1903]
[1729099899625,3.2197,155.31,155.27,22.1903]
[1729099900635,3.2197,155.3,155.27,22.1903]
[1729099905534,4.98,155.35,155.27,18.97]
[1729099906638,3.2198,155.3,155.27,18.97]
[1729099909840,4.98,155.35,155.29,13.91]
[1729099910029,13.91,155.39,155.29,13.91]
[1729099910234,5.06,155.36,155.29,13.91]
[1729099910434,3.2194,155.32,155.29,13.91]
[1729099910634,5.06,155.36,155.29,13.91]
[1729099911037,3.2192,155.33,155.29,17.1298]
[1729099911446,3.2192,155.33,155.29,17.1299]
[1729099911739,5.06,155.36,155.29,13.91]
[1729099911941,5.06,155.36,155.33,8.91]
[1729099912147,5.06,155.36,155.33,12.16306191]
[1729099912946,3.2189,155.34,155.33,12.16306191]
[1729099917251,3.2189,155.34,155.33,3.25306191]
[1729099917450,13.97,155.36,155.31,8.91]
[1729099917644,3.2193,155.32,155.31,8.91]
[1729099920744,3.2187,155.35,155.31,12.1293]
[1729099921041,5.06,155.43,155.34,8.91]
[1729099921246,5.06,155.43,155.39,8.91]
[1729099921447,3.2176,155.4,155.39,12.15600926]
[1729099922749,2.734,155.47,155.39,12.15600926]
[1729099922954,80.62047211,155.48,155.43,8.91]
[1729099923145,76.77047211,155.48,155.45,8.91]
[1729099923846,3.2169,155.44,155.43,13.89]
[1729099924951,3.2167,155.45,155.43,13.89]
[1729099925149,76.77047211,155.48,155.43,13.89]
[1729099925652,3.2168,155.45,155.43,13.89]
[1729099926156,3.2168,155.44,155.43,13.89]
[1729099926846,3.2165,155.46,155.43,13.89]
[1729099928851,5.06,155.52,155.45,13.89]
[1729099929551,3.2161,155.48,155.45,13.89]
[1729099929855,5.06,155.54,155.46,1.3253]
[1729099930059,3.2161,155.48,155.46,1.3253]
[1729099930260,5.06,155.54,155.46,1.3253]
[1729099930463,3.2158,155.49,155.47,13.89]
[1729099930671,5.06,155.54,155.47,13.89]
[1729099931259,3.2158,155.49,155.47,17.16351656]
[1729099931560,18.95,155.54,155.47,3.27351656]
[1729099931863,18.95,155.54,155.46,1.3253]
[1729099932258,3.2162,155.47,155.46,1.3253]
[1729099935170,18.95,155.54,155.45,13.89]
[1729099935362,13.89,155.52,155.42,13.89]
[1729099935559,2.7484,155.51,155.42,13.89]
[1729099935763,5.06,155.5,155.42,13.89]
[1729099936063,3.2165,155.46,155.42,13.89]
[1729099936263,5.06,155.5,155.41,6.4155]
[1729099936459,18.95,155.5,155.41,1.3555]
[1729099936864,18.95,155.5,155.4,13.89]
[1729099937062,13.89,155.48,155.39,3.24600926]
[1729099937361,13.89,155.46,155.37,1.3141]
[1729099937559,13.89,155.44,155.34,13.89]
[1729099937862,6.4107,155.45,155.24,239.89]
[1729099937863,3.2185,155.36,155.32,15.2041]
[1729099939970,3.2183,155.37,155.32,15.2041]
[1729099940162,5.06,155.39,155.32,15.2041]
[1729099940565,3.2183,155.37,155.32,15.2041]
[1729099940767,5.06,155.39,155.32,15.2041]
[1729099941371,5.06,155.42,155.37,13.89]
[1729099942370,3.2176,155.4,155.37,13.89]
[1729099943576,3.2175,155.41,155.37,13.89]
[1729099944078,5.06,155.42,155.37,13.89]
[1729099944275,3.2177,155.4,155.37,13.89]
[1729099946675,5.06,155.42,155.37,13.89]
[1729099947069,3.2173,155.42,155.38,13.89]
[1729099947662,3.2173,155.42,155.38,15.2581]
[1729099948279,3.2174,155.41,155.38,15.2581]
[1729099951682,5.06,155.44,155.38,15.2581]
[1729099951974,3.2173,155.42,155.38,15.2581]
[1729099953779,3.2173,155.42,155.38,18.4761]
[1729099953977,3.2169,155.44,155.38,15.2581]
[1729099954270,5.06,155.46,155.38,15.2581]
[1729099954676,3.2175,155.41,155.38,15.2581]
[1729099955383,5.06,155.46,155.38,15.2581]
[1729099955584,3.2173,155.42,155.38,15.2581]
[1729099957781,3.2177,155.4,155.38,1.3681]
[1729099958489,3.2175,155.41,155.38,1.3681]
[1729099958983,5.06,155.46,155.38,1.3681]
[1729099959493,5.06,155.46,155.38,15.2581]
[1729099960580,3.2177,155.42,155.38,15.2581]
[1729099961891,3.2177,155.42,155.4,8.9]
[1729099962090,3.2177,155.42,155.4,12.07157468]
[1729099965585,3.2177,155.41,155.4,3.17157468]
[1729099965892,8.9,155.44,155.38,1.3681]
[1729099966189,8.9,155.44,155.39,8.9]
[1729099966384,8.9,155.44,155.39,12.08745762]
[1729099966585,3.2174,155.43,155.4,8.9]
[1729099966786,5.08,155.45,155.4,8.9]
[1729099967088,5.08,155.45,155.41,8.9]
[1729099967385,5.08,155.45,155.4,8.9]
[1729099967589,5.08,155.45,155.4,12.10194188]
[1729099967789,13.98,155.45,155.4,12.10194188]
[1729099969396,3.2177,155.42,155.4,12.10194188]
[1729099974896,8.9,155.44,155.4,3.20194188]
[1729099975081,8.9,155.43,155.38,1.3681]
[1729099975287,8.9,155.43,155.39,3.27166192]
[1729099975593,5.08,155.45,155.4,3.28292576]
[1729099975594,12.1177,155.41,155.4,3.28292576]
[1729099975894,8.9,155.41,155.38,1.3681]
[1729099976290,3.2179,155.4,155.39,3.21587153]
[1729099976796,8.9,155.41,155.36,8.9]
[1729099976993,8.9,155.4,155.35,8.9]
[1729099977397,3.2185,155.38,155.35,8.9]
[1729099977600,3.2185,155.38,155.36,8.9]
[1729099981392,5.08,155.41,155.37,8.9]
[1729099981598,5.08,155.41,155.39,8.9]
[1729099981900,8.2979,155.41,155.39,12.08903881]
[1729099982096,5.08,155.41,155.39,12.08903881]
[1729099982601,5.08,155.41,155.39,3.18903881]
[1729099982901,5.08,155.41,155.38,8.9]
[1729099983497,3.2179,155.4,155.38,8.9]
[1729099989803,3.2179,155.4,155.39,8.9]
[1729099990004,3.2179,155.4,155.39,12.13904634]
[1729099990594,2.7541,155.49,155.39,12.13904634]
[1729099990795,8.9,155.47,155.4,8.9]
[1729099991010,8.9,155.47,155.4,10.3541]
[1729099991700,3.2174,155.43,155.4,10.3541]
[1729099992103,8.9,155.46,155.4,10.3541]
[1729099992303,3.2175,155.42,155.4,10.3541]
[1729099995007,2.7541,155.49,155.4,10.3541]
[1729099995207,13.86,155.48,155.43,8.9]
[1729099996501,3.2171,155.44,155.43,8.9]
[1729099997709,3.2175,155.42,155.4,1.4541]
[1729099997918,8.9,155.42,155.39,3.23904634]
[1729099998213,8.9,155.41,155.36,8.9]
[1729099999115,8.9,155.39,155.35,8.9]
[1729099999312,8.9,155.38,155.34,1.4529]
[1729099999708,3.219,155.35,155.34,1.4529]
[1729100000316,3.2186,155.37,155.34,1.4529]
[1729100001214,3.2188,155.36,155.34,1.4529]
[1729100004712,4.96,155.4,155.34,1.4529]
[1729100004713,8.9,155.38,155.34,1.4529]
[1729100004910,8.9,155.37,155.31,12.10729714]
[1729100005316,3.2195,155.33,155.31,12.10729714]
[1729100006211,3.2196,155.32,155.31,3.20729714]
[1729100006408,8.9,155.33,155.29,1.4042]